[Event "TePe Sigeman & Co Chess Tournament 2025"]
[Site "Elite Plaza Hotel, Gustav Adolfs Torg 49, Malmo, Sweden"]
[Date "2025.05.22"]
[Round "3.1"]
[White "Erdogmus, Yagiz Kaan"]
[Black "Sindarov, Javokhir"]
[Result "1/2-1/2"]
[TimeControl "90 minutes for 40 moves + 30 minutes for the rest of the game + 30 seconds per move from move one."]
[WhiteTitle "GM"]
[BlackTitle "GM"]
[WhiteFideId "44599790"]
[BlackFideId "14205483"]
[WhiteElo "2618"]
[BlackElo "2706"]

1. e4 {[%clk 01:30:57]} {[%emt 00:00:03]} e5 {[%clk 01:30:51]} {[%emt
00:00:09]} 2. Nf3 {[%clk 01:31:23]} {[%emt 00:00:04]} Nc6 {[%clk 01:31:11]}
{[%emt 00:00:10]} 3. Bb5 {[%clk 01:31:48]} {[%emt 00:00:06]} a6 {[%clk
01:31:33]} {[%emt 00:00:08]} 4. Bxc6 {[%clk 01:32:14]} {[%emt 00:00:04]} dxc6
{[%clk 01:31:50]} {[%emt 00:00:12]} 5. O-O {[%clk 01:32:39]} {[%emt 00:00:05]}
f6 {[%clk 01:28:05]} {[%emt 00:04:16]} 6. d4 {[%clk 01:33:04]} {[%emt
00:00:05]} exd4 {[%clk 01:28:26]} {[%emt 00:00:09]} 7. Nxd4 {[%clk 01:33:28]}
{[%emt 00:00:06]} c5 {[%clk 01:27:46]} {[%emt 00:01:09]} 8. Ne2 {[%clk
01:33:52]} {[%emt 00:00:06]} Qxd1 {[%clk 01:26:24]} {[%emt 00:01:52]} 9. Rxd1
{[%clk 01:34:19]} {[%emt 00:00:02]} Bd7 {[%clk 01:26:46]} {[%emt 00:00:08]} 10.
Be3 {[%clk 01:34:07]} {[%emt 00:00:42]} O-O-O {[%clk 01:26:05]} {[%emt
00:01:12]} 11. Nbc3 {[%clk 01:34:15]} {[%emt 00:00:22]} Re8 {[%clk 01:22:22]}
{[%emt 00:04:13]} 12. Rd2 {[%clk 01:29:19]} {[%emt 00:05:26]} Bc6 {[%clk
01:20:04]} {[%emt 00:02:48]} 13. Rad1 {[%clk 01:26:20]} {[%emt 00:03:29]} b6
{[%clk 01:04:54]} {[%emt 00:15:40]} 14. f3 {[%clk 01:07:59]} {[%emt 00:18:50]}
Ne7 {[%clk 01:04:05]} {[%emt 00:01:19]} 15. Nf4 {[%clk 01:02:29]} {[%emt
00:06:01]} Ng6 {[%clk 01:04:07]} {[%emt 00:00:28]} 16. Ncd5 {[%clk 01:00:22]}
{[%emt 00:02:36]} Ne5 {[%clk 00:59:11]} {[%emt 00:05:26]} 17. b3 {[%clk
00:59:31]} {[%emt 00:01:21]} h5 {[%clk 00:54:09]} {[%emt 00:05:33]} 18. h4
{[%clk 00:54:10]} {[%emt 00:05:50]} Kb7 {[%clk 00:52:21]} {[%emt 00:02:18]} 19.
c4 {[%clk 00:50:50]} {[%emt 00:03:50]} Bd6 {[%clk 00:50:37]} {[%emt 00:02:14]}
20. Kf2 {[%clk 00:43:34]} {[%emt 00:07:46]} Ref8 {[%clk 00:37:10]} {[%emt
00:13:57]} 21. Nd3 {[%clk 00:27:10]} {[%emt 00:16:53]} Bxd5 {[%clk 00:31:37]}
{[%emt 00:06:03]} 22. exd5 {[%clk 00:27:28]} {[%emt 00:00:12]} Nxd3+ {[%clk
00:30:33]} {[%emt 00:01:34]} 23. Rxd3 {[%clk 00:27:51]} {[%emt 00:00:07]} Kc8
{[%clk 00:30:37]} {[%emt 00:00:26]} 24. Re1 {[%clk 00:25:26]} {[%emt 00:02:55]}
Re8 {[%clk 00:31:01]} {[%emt 00:00:06]} 25. Bd2 {[%clk 00:25:00]} {[%emt
00:00:56]} Kd7 {[%clk 00:29:14]} {[%emt 00:02:17]} 26. Rxe8 {[%clk 00:24:25]}
{[%emt 00:01:05]} Kxe8 {[%clk 00:28:27]} {[%emt 00:01:17]} 27. a4 {[%clk
00:23:41]} {[%emt 00:01:14]} a5 {[%clk 00:28:47]} {[%emt 00:00:10]} 28. Re3+
{[%clk 00:23:50]} {[%emt 00:00:20]} Kf7 {[%clk 00:29:11]} {[%emt 00:00:05]} 29.
Re4 {[%clk 00:23:32]} {[%emt 00:00:48]} Re8 {[%clk 00:27:08]} {[%emt 00:02:33]}
30. Rxe8 {[%clk 00:23:43]} {[%emt 00:00:19]} Kxe8 {[%clk 00:27:35]} {[%emt
00:00:03]} 31. g4 {[%clk 00:22:58]} {[%emt 00:01:15]} g6 {[%clk 00:28:02]}
{[%emt 00:00:03]} 32. gxh5 {[%clk 00:22:27]} {[%emt 00:01:01]} gxh5 {[%clk
00:28:28]} {[%emt 00:00:04]} 33. f4 {[%clk 00:22:49]} {[%emt 00:00:07]} f5
{[%clk 00:28:55]} {[%emt 00:00:04]} 34. Kg3 {[%clk 00:23:12]} {[%emt 00:00:07]}
Kf7 {[%clk 00:29:22]} {[%emt 00:00:03]} 35. Bc3 {[%clk 00:23:33]} {[%emt
00:00:09]} Kg6 {[%clk 00:29:49]} {[%emt 00:00:03]} 36. Be5 {[%clk 00:23:49]}
{[%emt 00:00:13]} Kf7 {[%clk 00:30:16]} {[%emt 00:00:03]} 37. Bxd6 {[%clk
00:24:15]} {[%emt 00:00:05]} cxd6 {[%clk 00:30:43]} {[%emt 00:00:03]} 38. Kh2
{[%clk 00:24:39]} {[%emt 00:00:06]} Kg6 {[%clk 00:31:10]} {[%emt 00:00:03]} 39.
Kg3 {[%clk 00:24:50]} {[%emt 00:00:19]} Kf7 {[%clk 00:31:35]} {[%emt 00:00:05]}
40. Kh2 {[%clk 00:25:16]} {[%emt 00:00:03]} Kg6 {[%clk 00:32:00]} {[%emt
00:00:06]} 1/2-1/2

[Event "TePe Sigeman & Co Chess Tournament 2025"]
[Site "Elite Plaza Hotel, Gustav Adolfs Torg 49, Malmo, Sweden"]
[Date "2025.05.22"]
[Round "3.2"]
[White "Rapport, Richard"]
[Black "Tan, Zhongyi"]
[Result "0-1"]
[TimeControl "90 minutes for 40 moves + 30 minutes for the rest of the game + 30 seconds per move from move one."]
[WhiteTitle "GM"]
[BlackTitle "GM"]
[WhiteFideId "738590"]
[BlackFideId "8603642"]
[WhiteElo "2722"]
[BlackElo "2536"]

1. e4 {[%clk 01:30:29]} {[%emt 00:00:29]} e5 {[%clk 01:30:53]} {[%emt
00:00:08]} 2. Nf3 {[%clk 01:30:43]} {[%emt 00:00:15]} Nc6 {[%clk 01:31:16]}
{[%emt 00:00:08]} 3. Bb5 {[%clk 01:31:02]} {[%emt 00:00:11]} a6 {[%clk
01:31:35]} {[%emt 00:00:12]} 4. Ba4 {[%clk 01:31:26]} {[%emt 00:00:05]} Nf6
{[%clk 01:31:58]} {[%emt 00:00:07]} 5. d3 {[%clk 01:31:48]} {[%emt 00:00:08]}
b5 {[%clk 01:32:10]} {[%emt 00:00:18]} 6. Bb3 {[%clk 01:32:16]} {[%emt
00:00:02]} d6 {[%clk 01:32:07]} {[%emt 00:00:33]} 7. a4 {[%clk 01:30:05]}
{[%emt 00:02:41]} Bd7 {[%clk 01:32:24]} {[%emt 00:00:13]} 8. Nc3 {[%clk
01:14:11]} {[%emt 00:16:23]} Na5 {[%clk 01:22:23]} {[%emt 00:10:31]} 9. Ba2
{[%clk 01:13:43]} {[%emt 00:00:58]} Be7 {[%clk 01:22:44]} {[%emt 00:00:09]} 10.
b4 {[%clk 01:08:13]} {[%emt 00:06:01]} Nc6 {[%clk 01:22:39]} {[%emt 00:00:35]}
11. Nd5 {[%clk 01:08:06]} {[%emt 00:00:36]} Nd4 {[%clk 01:14:26]} {[%emt
00:08:43]} 12. Nxd4 {[%clk 00:56:23]} {[%emt 00:12:13]} exd4 {[%clk 01:14:50]}
{[%emt 00:00:06]} 13. Bb2 {[%clk 00:56:02]} {[%emt 00:00:51]} Nxd5 {[%clk
01:14:42]} {[%emt 00:00:38]} 14. Bxd5 {[%clk 00:53:51]} {[%emt 00:02:41]} c6
{[%clk 01:15:06]} {[%emt 00:00:06]} 15. Bb3 {[%clk 00:54:07]} {[%emt 00:00:15]}
Bf6 {[%clk 01:15:23]} {[%emt 00:00:13]} 16. Ra2 {[%clk 00:41:51]} {[%emt
00:12:46]} O-O {[%clk 01:10:53]} {[%emt 00:04:59]} 17. O-O {[%clk 00:42:15]}
{[%emt 00:00:05]} Be6 {[%clk 01:06:31]} {[%emt 00:04:52]} 18. Bxe6 {[%clk
00:41:13]} {[%emt 00:01:32]} fxe6 {[%clk 01:06:56]} {[%emt 00:00:06]} 19. Qg4
{[%clk 00:41:37]} {[%emt 00:00:05]} Qc8 {[%clk 01:05:19]} {[%emt 00:02:07]} 20.
axb5 {[%clk 00:33:33]} {[%emt 00:08:35]} cxb5 {[%clk 01:05:37]} {[%emt
00:00:12]} 21. Bc1 {[%clk 00:33:30]} {[%emt 00:00:32]} e5 {[%clk 01:05:35]}
{[%emt 00:00:32]} 22. h3 {[%clk 00:33:10]} {[%emt 00:00:51]} Qxg4 {[%clk
00:59:15]} {[%emt 00:06:51]} 23. hxg4 {[%clk 00:33:37]} {[%emt 00:00:02]} h6
{[%clk 00:59:33]} {[%emt 00:00:12]} 24. g3 {[%clk 00:33:02]} {[%emt 00:01:06]}
Rfc8 {[%clk 00:59:26]} {[%emt 00:00:36]} 25. f4 {[%clk 00:28:40]} {[%emt
00:04:52]} Rc6 {[%clk 00:57:49]} {[%emt 00:02:07]} 26. Rf2 {[%clk 00:29:03]}
{[%emt 00:00:07]} Bd8 {[%clk 00:57:22]} {[%emt 00:00:57]} 27. Kg2 {[%clk
00:26:35]} {[%emt 00:02:57]} Rac8 {[%clk 00:52:50]} {[%emt 00:05:03]} 28. Kf3
{[%clk 00:25:53]} {[%emt 00:01:12]} Kf7 {[%clk 00:52:44]} {[%emt 00:00:34]} 29.
g5 {[%clk 00:18:32]} {[%emt 00:07:53]} hxg5 {[%clk 00:52:44]} {[%emt 00:00:30]}
30. f5 {[%clk 00:18:56]} {[%emt 00:00:06]} Be7 {[%clk 00:52:57]} {[%emt
00:00:16]} 31. Kg4 {[%clk 00:17:47]} {[%emt 00:01:40]} Rh8 {[%clk 00:52:43]}
{[%emt 00:00:44]} 32. Bxg5 {[%clk 00:17:56]} {[%emt 00:00:21]} Bf6 {[%clk
00:43:05]} {[%emt 00:10:07]} 33. Ra1 {[%clk 00:17:33]} {[%emt 00:00:53]} Rh7
{[%clk 00:40:04]} {[%emt 00:03:31]} 34. Rc1 {[%clk 00:16:47]} {[%emt 00:01:17]}
Rh8 {[%clk 00:37:20]} {[%emt 00:03:14]} 35. Bd2 {[%clk 00:13:54]} {[%emt
00:03:23]} Rhc8 {[%clk 00:37:08]} {[%emt 00:00:41]} 36. Be1 {[%clk 00:08:56]}
{[%emt 00:05:28]} Be7 {[%clk 00:36:23]} {[%emt 00:01:15]} 37. Rh2 {[%clk
00:08:40]} {[%emt 00:00:47]} Bf6 {[%clk 00:36:34]} {[%emt 00:00:20]} 38. Rg2
{[%clk 00:06:07]} {[%emt 00:03:03]} Be7 {[%clk 00:36:59]} {[%emt 00:00:05]} 39.
Re2 {[%clk 00:05:27]} {[%emt 00:01:09]} Bf6 {[%clk 00:37:08]} {[%emt 00:00:20]}
40. Kf3 {[%clk 00:04:44]} {[%emt 00:01:13]} Bg5 {[%clk 00:33:59]} {[%emt
00:03:39]} 41. Bd2 {[%clk 00:04:39]} {[%emt 00:00:36]} Be7 {[%clk 00:21:20]}
{[%emt 00:13:09]} 42. Be1 {[%clk 00:04:40]} {[%emt 00:00:30]} Bg5 {[%clk
00:21:44]} {[%emt 00:00:06]} 43. Bd2 {[%clk 00:03:54]} {[%emt 00:01:16]} Be7
{[%clk 00:22:02]} {[%emt 00:00:11]} 44. Ra1 {[%clk 00:25:34]} {[%emt 00:08:50]}
Rxc2 {[%clk 00:50:20]} {[%emt 00:02:12]} 45. Rxa6 {[%clk 00:25:45]} {[%emt
00:00:19]} Rb2 {[%clk 00:50:32]} {[%emt 00:00:18]} 46. Ra7 {[%clk 00:24:55]}
{[%emt 00:01:22]} Rcc2 {[%clk 00:43:48]} {[%emt 00:07:14]} 47. Bg5 {[%clk
00:24:47]} {[%emt 00:00:38]} Rxe2 {[%clk 00:44:12]} {[%emt 00:00:06]} 48. Bxe7
{[%clk 00:24:56]} {[%emt 00:00:21]} Ra2 {[%clk 00:38:20]} {[%emt 00:06:22]} 49.
Rb7 {[%clk 00:25:02]} {[%emt 00:00:25]} d5 {[%clk 00:31:36]} {[%emt 00:07:15]}
50. exd5 {[%clk 00:17:41]} {[%emt 00:07:50]} e4+ {[%clk 00:31:31]} {[%emt
00:00:35]} 51. dxe4 {[%clk 00:18:05]} {[%emt 00:00:06]} Rf2+ {[%clk 00:27:33]}
{[%emt 00:04:29]} 52. Kg4 {[%clk 00:18:34]} {[%emt 00:00:02]} d3 {[%clk
00:27:51]} {[%emt 00:00:12]} 53. Bg5+ {[%clk 00:11:05]} {[%emt 00:07:58]} Kg8
{[%clk 00:28:13]} {[%emt 00:00:08]} 54. d6 {[%clk 00:11:09]} {[%emt 00:00:27]}
d2 {[%clk 00:27:58]} {[%emt 00:00:44]} 55. Bxd2 {[%clk 00:11:07]} {[%emt
00:00:32]} Raxd2 {[%clk 00:25:50]} {[%emt 00:02:38]} 56. e5 {[%clk 00:11:13]}
{[%emt 00:00:24]} Rd4+ {[%clk 00:22:53]} {[%emt 00:03:27]} 57. Kh3 {[%clk
00:08:31]} {[%emt 00:03:13]} Rxf5 {[%clk 00:19:25]} {[%emt 00:03:57]} 58. d7
{[%clk 00:08:41]} {[%emt 00:00:21]} Kf8 {[%clk 00:17:56]} {[%emt 00:01:58]} 0-1

[Event "TePe Sigeman & Co Chess Tournament 2025"]
[Site "Elite Plaza Hotel, Gustav Adolfs Torg 49, Malmo, Sweden"]
[Date "2025.05.22"]
[Round "3.3"]
[White "Ivanchuk, Vasyl"]
[Black "Grandelius, Nils"]
[Result "0-1"]
[TimeControl "90 minutes for 40 moves + 30 minutes for the rest of the game + 30 seconds per move from move one."]
[WhiteTitle "GM"]
[BlackTitle "GM"]
[WhiteFideId "14100010"]
[BlackFideId "1710400"]
[WhiteElo "2644"]
[BlackElo "2637"]

1. c4 {[%clk 01:30:58]} c6 {[%clk 01:29:37]} {[%emt 00:01:23]} 2. Nf3 {[%clk
01:31:15]} {[%emt 00:00:13]} d5 {[%clk 01:29:57]} {[%emt 00:00:10]} 3. d4
{[%clk 01:31:41]} {[%emt 00:00:05]} Nf6 {[%clk 01:30:01]} {[%emt 00:00:25]} 4.
g3 {[%clk 01:32:07]} {[%emt 00:00:04]} dxc4 {[%clk 01:27:22]} {[%emt 00:03:09]}
5. Bg2 {[%clk 01:30:43]} {[%emt 00:01:54]} g6 {[%clk 01:27:18]} {[%emt
00:00:33]} 6. O-O {[%clk 01:30:55]} {[%emt 00:00:19]} Bg7 {[%clk 01:26:57]}
{[%emt 00:00:51]} 7. a4 {[%clk 01:31:21]} {[%emt 00:00:05]} Be6 {[%clk
01:25:21]} {[%emt 00:02:05]} 8. Nc3 {[%clk 01:24:54]} {[%emt 00:06:58]} Nd5
{[%clk 01:16:45]} {[%emt 00:09:05]} 9. e4 {[%clk 01:24:18]} {[%emt 00:01:07]}
Nb4 {[%clk 01:16:57]} {[%emt 00:00:18]} 10. h3 {[%clk 01:16:42]} {[%emt
00:08:06]} O-O {[%clk 01:10:51]} {[%emt 00:06:31]} 11. Be3 {[%clk 01:16:30]}
{[%emt 00:00:47]} N8a6 {[%clk 01:04:52]} {[%emt 00:06:30]} 12. Ne2 {[%clk
00:50:29]} {[%emt 00:26:30]} Nd3 {[%clk 00:42:52]} {[%emt 00:22:30]} 13. b3
{[%clk 00:48:33]} {[%emt 00:02:26]} Nab4 {[%clk 00:42:25]} {[%emt 00:00:56]} 14.
Ng5 {[%clk 00:48:52]} {[%emt 00:00:10]} Bd7 {[%clk 00:33:58]} {[%emt 00:08:57]}
15. bxc4 {[%clk 00:27:11]} {[%emt 00:22:12]} c5 {[%clk 00:33:57]} {[%emt
00:00:31]} 16. Ra3 {[%clk 00:26:45]} {[%emt 00:00:55]} cxd4 {[%clk 00:32:24]}
{[%emt 00:02:03]} 17. Nxd4 {[%clk 00:27:01]} {[%emt 00:00:15]} Ne5 {[%clk
00:24:22]} {[%emt 00:08:32]} 18. Qb3 {[%clk 00:13:04]} {[%emt 00:14:27]} Nbc6
{[%clk 00:23:21]} {[%emt 00:01:29]} 19. Nxc6 {[%clk 00:13:11]} {[%emt
00:00:24]} Nxc6 {[%clk 00:23:42]} {[%emt 00:00:09]} 20. c5 {[%clk 00:05:18]}
{[%emt 00:08:23]} Qc8 {[%clk 00:22:53]} {[%emt 00:01:18]} 21. Kh2 {[%clk
00:04:08]} {[%emt 00:01:40]} Nd4 {[%clk 00:21:22]} {[%emt 00:02:02]} 22. Qd3
{[%emt 00:05:18]} e5 {[%clk 00:12:07]} {[%emt 00:06:36]} 23. Rc1 {[%clk
00:02:11]} {[%emt 00:00:48]} Qd8 {[%clk 00:10:42]} {[%emt 00:01:55]} 24. Bxd4
{[%clk 00:01:21]} {[%emt 00:01:20]} exd4 {[%clk 00:10:55]} {[%emt 00:00:17]} 25.
f4 {[%clk 00:01:48]} {[%emt 00:00:02]} Rc8 {[%clk 00:10:17]} {[%emt 00:01:09]}
26. e5 {[%clk 00:00:52]} {[%emt 00:01:27]} Bxe5 {[%clk 00:09:23]} {[%emt
00:01:24]} 27. Bxb7 {[%clk 00:01:21]} Rc7 {[%clk 00:09:37]} {[%emt 00:00:16]}
28. Bg2 {[%clk 00:01:47]} {[%emt 00:00:04]} Bg7 {[%clk 00:09:14]} {[%emt
00:00:53]} 29. c6 {[%clk 00:00:43]} {[%emt 00:01:35]} h6 {[%clk 00:07:33]}
{[%emt 00:02:11]} 30. Raa1 {[%clk 00:00:32]} {[%emt 00:00:41]} hxg5 {[%clk
00:03:29]} {[%emt 00:04:34]} 31. cxd7 {[%clk 00:01:01]} gxf4 {[%clk 00:03:47]}
{[%emt 00:00:12]} 32. gxf4 {[%clk 00:01:16]} {[%emt 00:00:15]} Qxd7 {[%clk
00:03:32]} {[%emt 00:00:45]} 33. f5 {[%clk 00:01:42]} {[%emt 00:00:04]} Rfc8
{[%clk 00:01:34]} {[%emt 00:02:28]} 34. Rxc7 {[%clk 00:01:17]} {[%emt
00:00:56]} Qxc7+ {[%clk 00:02:02]} {[%emt 00:00:02]} 35. Kh1 {[%clk 00:01:46]}
g5 {[%clk 00:01:53]} {[%emt 00:00:40]} 36. f6 {[%clk 00:01:56]} {[%emt
00:00:20]} Bxf6 {[%clk 00:01:25]} {[%emt 00:00:58]} 37. Qf5 {[%clk 00:01:39]}
{[%emt 00:00:47]} Bg7 {[%clk 00:00:56]} {[%emt 00:00:59]} 38. Re1 {[%clk
00:00:38]} {[%emt 00:01:31]} Rd8 {[%clk 00:01:00]} {[%emt 00:00:27]} 39. Qxg5
{[%clk 00:00:40]} {[%emt 00:00:28]} d3 {[%clk 00:01:04]} {[%emt 00:00:25]} 40.
Bf3 {[%clk 00:00:37]} {[%emt 00:00:33]} Qd7 {[%clk 00:00:42]} {[%emt 00:00:52]}
41. Kg2 {[%clk 00:25:18]} {[%emt 00:05:48]} Rb8 {[%clk 00:18:21]} {[%emt
00:12:51]} 42. Re4 {[%clk 00:18:12]} {[%emt 00:07:37]} d2 {[%clk 00:10:05]}
{[%emt 00:08:46]} 43. Bd1 {[%clk 00:10:49]} {[%emt 00:07:53]} Qc6 {[%clk
00:09:41]} {[%emt 00:00:53]} 44. Kf3 {[%clk 00:08:04]} {[%emt 00:03:16]} f5
{[%clk 00:06:18]} {[%emt 00:03:54]} 45. Qxf5 {[%clk 00:08:13]} {[%emt
00:00:21]} Rf8 {[%clk 00:06:44]} {[%emt 00:00:03]} 46. Qxf8+ {[%clk 00:07:50]}
{[%emt 00:00:54]} Kxf8 {[%clk 00:06:10]} {[%emt 00:01:03]} 47. Ke3 {[%clk
00:08:14]} {[%emt 00:00:05]} Bh6+ {[%clk 00:05:54]} {[%emt 00:00:46]} 48. Kd3
{[%clk 00:08:39]} {[%emt 00:00:05]} Qd5+ {[%clk 00:05:55]} {[%emt 00:00:29]} 49.
Rd4 {[%clk 00:09:01]} {[%emt 00:00:09]} Qf5+ {[%clk 00:06:11]} {[%emt
00:00:13]} 50. Ke2 {[%clk 00:09:15]} {[%emt 00:00:16]} Qh5+ {[%clk 00:06:03]}
{[%emt 00:00:37]} 0-1

[Event "TePe Sigeman & Co Chess Tournament 2025"]
[Site "Elite Plaza Hotel, Gustav Adolfs Torg 49, Malmo, Sweden"]
[Date "2025.05.22"]
[Round "3.4"]
[White "Robson, Ray"]
[Black "L'Ami, Erwin"]
[Result "1/2-1/2"]
[TimeControl "90 minutes for 40 moves + 30 minutes for the rest of the game + 30 seconds per move from move one."]
[WhiteTitle "GM"]
[BlackTitle "GM"]
[WhiteFideId "2023970"]
[BlackFideId "1007998"]
[WhiteElo "2692"]
[BlackElo "2621"]

1. e4 {[%clk 01:30:58]} {[%emt 00:00:01]} c5 {[%clk 01:30:45]} {[%emt
00:00:15]} 2. Nf3 {[%clk 01:31:17]} {[%emt 00:00:11]} d6 {[%clk 01:31:04]}
{[%emt 00:00:12]} 3. d4 {[%clk 01:30:40]} {[%emt 00:01:07]} cxd4 {[%clk
01:31:23]} {[%emt 00:00:11]} 4. Nxd4 {[%clk 01:31:05]} {[%emt 00:00:05]} Nf6
{[%clk 01:31:40]} {[%emt 00:00:13]} 5. Nc3 {[%clk 01:31:28]} {[%emt 00:00:07]}
a6 {[%clk 01:32:00]} {[%emt 00:00:10]} 6. Be3 {[%clk 01:29:59]} {[%emt
00:01:59]} e5 {[%clk 01:32:07]} {[%emt 00:00:23]} 7. Nb3 {[%clk 01:29:05]}
{[%emt 00:01:24]} Be6 {[%clk 01:32:02]} {[%emt 00:00:35]} 8. f3 {[%clk
01:28:54]} {[%emt 00:00:41]} h5 {[%clk 01:31:57]} {[%emt 00:00:35]} 9. Qd2
{[%clk 01:28:25]} {[%emt 00:00:59]} Nbd7 {[%clk 01:31:47]} {[%emt 00:00:40]} 10.
O-O-O {[%clk 01:28:02]} {[%emt 00:00:51]} Rc8 {[%clk 01:23:02]} {[%emt
00:09:16]} 11. Kb1 {[%clk 01:27:37]} {[%emt 00:00:55]} Be7 {[%clk 01:20:43]}
{[%emt 00:02:49]} 12. a4 {[%clk 01:26:40]} {[%emt 00:01:28]} Nb6 {[%clk
01:05:22]} {[%emt 00:15:51]} 13. a5 {[%clk 01:10:12]} {[%emt 00:16:59]} Nc4
{[%clk 01:02:59]} {[%emt 00:02:52]} 14. Bxc4 {[%clk 01:10:15]} {[%emt
00:00:26]} Rxc4 {[%clk 00:59:44]} {[%emt 00:03:45]} 15. Bg5 {[%clk 01:07:55]}
{[%emt 00:02:50]} Qc7 {[%clk 00:56:12]} {[%emt 00:04:02]} 16. Bxf6 {[%clk
01:01:18]} {[%emt 00:07:07]} gxf6 {[%clk 00:55:40]} {[%emt 00:01:02]} 17. f4
{[%clk 00:58:10]} {[%emt 00:03:38]} exf4 {[%clk 00:44:04]} {[%emt 00:12:06]} 18.
Nd5 {[%clk 00:54:17]} {[%emt 00:04:22]} Bxd5 {[%clk 00:40:42]} {[%emt
00:03:53]} 19. exd5 {[%clk 00:54:28]} {[%emt 00:00:18]} f5 {[%clk 00:35:33]}
{[%emt 00:05:39]} 20. Rhe1 {[%clk 00:31:03]} {[%emt 00:23:55]} O-O {[%clk
00:28:56]} {[%emt 00:07:07]} 21. Qd3 {[%clk 00:19:31]} {[%emt 00:12:02]} Bf6
{[%clk 00:27:43]} {[%emt 00:01:43]} 22. Qxf5 {[%clk 00:19:33]} {[%emt
00:00:29]} Kg7 {[%clk 00:23:51]} {[%emt 00:04:22]} 23. Re2 {[%clk 00:16:38]}
{[%emt 00:03:25]} Qc8 {[%clk 00:21:03]} {[%emt 00:03:18]} 24. Qd3 {[%clk
00:13:34]} {[%emt 00:03:34]} Rb4 {[%clk 00:16:55]} {[%emt 00:04:38]} 25. g3
{[%clk 00:12:17]} {[%emt 00:01:46]} Re8 {[%clk 00:12:12]} {[%emt 00:05:13]} 26.
gxf4 {[%clk 00:07:49]} {[%emt 00:04:58]} Rxe2 {[%clk 00:11:41]} {[%emt
00:01:01]} 27. Qxe2 {[%clk 00:06:48]} {[%emt 00:01:31]} Qg4 {[%clk 00:05:54]}
{[%emt 00:06:17]} 28. Qxg4+ {[%clk 00:06:32]} {[%emt 00:00:46]} hxg4 {[%clk
00:06:22]} {[%emt 00:00:02]} 29. Rg1 {[%clk 00:06:41]} {[%emt 00:00:21]} Rxf4
{[%clk 00:06:15]} {[%emt 00:00:37]} 30. h3 {[%clk 00:06:56]} {[%emt 00:00:14]}
Kg6 {[%clk 00:06:04]} {[%emt 00:00:42]} 31. hxg4 {[%clk 00:06:29]} {[%emt
00:00:58]} Rb4 {[%clk 00:05:32]} {[%emt 00:01:01]} 32. g5 {[%clk 00:01:10]}
{[%emt 00:05:49]} Be5 {[%clk 00:04:34]} {[%emt 00:01:28]} 33. Ka2 {[%clk
00:00:58]} {[%emt 00:00:41]} Ra4+ {[%clk 00:04:51]} {[%emt 00:00:13]} 34. Kb1
{[%clk 00:01:27]} {[%emt 00:00:02]} Rb4 {[%clk 00:05:11]} {[%emt 00:00:11]} 35.
Ka2 {[%clk 00:01:55]} {[%emt 00:00:02]} Ra4+ {[%clk 00:02:48]} {[%emt
00:02:53]} 36. Kb1 {[%clk 00:02:23]} {[%emt 00:00:02]} Rb4 {[%clk 00:03:10]}
{[%emt 00:00:08]} 1/2-1/2